Cogmind - Beta 16 @@@ ROGUE MODE // 2025.12.21 @ 15:16:35 Player: EuleBlut Result: Destroyed by X-62 Marksman with Gauss Rifle Performance ------------- Evolutions (2) 1000 Regions Visited (3) 600 Robots Destroyed (90) 450 Value Destroyed (2434) 2434 Prototype IDs (3) 60 Alien Tech Used (0) 0 Bonus (0) 0 TOTAL SCORE: 4544 Bonus ------- None Cogmind --------- Core Integrity 0/550 Matter 273/300 Energy 264/290 System Corruption 0% Temperature Warm (123) Movement Rolling (145) Ox3 Location -8/Materials Parts ------- > --- POWER (2) -------- Improved Deuterium Engine > --- PROPULSION (2) --- Compact Wheel > --- UTILITY (5) ------ High-capacity Storage Unit Transport Network Coupler Advanced Targeting Computer Advanced Targeting Computer Core Shielding > --- WEAPON (2) ------- Particle Gun Spread Laser > --- INVENTORY (20) --- Compact Wheel Cryofiber Web Improved Heat Sink High-capacity Storage Unit Improved Terrain Scanner Improved Terrain Scanner Targeting Computer Advanced Targeting Computer Advanced Targeting Computer Core Analyzer Improved Propulsion Shielding Hardened Medium Armor Plating Reflective Plating Shock Bomb Launcher Shock Bomb Launcher Grenade Launcher Datajack Peak State ------------ > --- POWER ------------ Improved Deuterium Engine Improved Deuterium Engine > --- PROPULSION ------- Wheel Compact Wheel > --- UTILITY ---------- High-capacity Storage Unit Transport Network Coupler Advanced Targeting Computer Advanced Targeting Computer Core Shielding > --- WEAPON ----------- Improved Medium Laser Gauss Rifle > --- INVENTORY -------- Compact Wheel Cryofiber Web Improved Heat Sink High-capacity Storage Unit Improved Terrain Scanner Improved Terrain Scanner Targeting Computer Advanced Targeting Computer Advanced Targeting Computer Improved Propulsion Shielding Reflective Plating Improved EM Shotgun Particle Gun Shock Bomb Launcher Shock Bomb Launcher Grenade Launcher Datajack [Rating: 30] Favorites ----------- Power Light Ion Engine Engine Light Ion Engine Propulsion Compact Wheel Treads Light Treads Wheel Compact Wheel Utility High-capacity Storage Unit Device Heat Sink Storage High-capacity Storage Unit Processor Transport Network Coupler Protection Core Shielding Weapon Improved Light Cannon Energy Gun Medium Laser Energy Cannon Beam Cannon Ballistic Gun Gauss Rifle Ballistic Cannon Improved Light Cannon Launcher EMP Blaster Build | -11 -10 -9 -8 ------- Run | Yrd Mat Mat Mat Slots Evolved 4 | . . 2 2 Power 1 | . . . 1 Propulsion . | . . . . Utility 3 | . . 2 1 Weapon . | . . . . Parts Attached 60 | 6 5 17 32 Power 13 | 1 1 4 7 Engine 13 | 1 1 4 7 Core . | . . . . Reactor . | . . . . Propulsion 14 | 2 1 3 8 Treads 2 | . . . 2 Leg . | . . . . Wheel 12 | 2 1 3 6 Hover . | . . . . Flight . | . . . . Utility 14 | 1 2 3 8 Device 2 | . . 2 . Storage 3 | 1 1 . 1 Processor 3 | . 1 . 2 Hackware . | . . . . Protection 6 | . . 1 5 Artifact . | . . . . Weapon 19 | 2 1 7 9 Energy Gun 7 | 1 1 1 4 Energy Cannon 3 | . . 1 2 Ballistic Gun 2 | 1 . . 1 Ballistic Cannon 3 | . . 3 . Launcher 4 | . . 2 2 Special Weapon . | . . . . Impact Weapon . | . . . . Slashing Weapon . | . . . . Piercing Weapon . | . . . . Special Melee Weapon . | . . . . Unidentified Prototypes 3 | . . 1 2 Parts Lost 42 | . 3 17 22 Power 10 | . 1 3 6 Propulsion 11 | . 1 5 5 Utility 5 | . . 1 4 Weapon 16 | . 1 8 7 Highest Loss Streak 5 | . 1 3 5 To Critical Strikes . | . . . . Average Backups 13 | 2 9 11 17 Power 1 | . 1 2 . Propulsion 1 | 1 2 2 . Utility 5 | . 2 2 9 Weapon 3 | . 2 2 5 Tool/Special . | . . . . Unused Backups 14 | . . . 14 Power . | . . . . Propulsion 1 | . . . 1 Utility 9 | . . . 9 Weapon 3 | . . . 3 Tool/Special 1 | . . . 1 Average Slot Usage (%) 85 | . 88 80 88 Engine 13 | . 13 10 15 Treads 3 | . . . 9 Wheel 11 | . 20 13 4 Device 6 | . . 7 7 Storage 10 | . 14 11 9 Processor 12 | . 11 11 13 Protection 7 | . . 7 10 Energy Gun 9 | . 23 7 5 Energy Cannon 1 | . . 1 1 Ballistic Gun 1 | . 4 . 2 Ballistic Cannon 5 | . . 9 4 Launcher 2 | . . 1 3 Peak Build Rating 30 | 6 9 12 30 Average Rating 13 | 3 7 10 19 On Entrance 6 | . 6 9 10 Avg Prop Armor Cover (%) 10 | . . . 10 Naked Turns . | . . . . Heaviest Build 69 | 12 50 53 69 Greatest Support 40 | 32 32 32 40 Greatest Overweight (x) 20 | . 3 17 20 Average Overweight (x) 2 | . 2 2 2 Largest Inventory Capacity 20 | 8 20 20 20 Average Capacity 19 | 6 18 20 20 Most Carried 20 | 4 13 18 20 Average Carried 13 | 2 9 11 17 Final Capacity 20 | 8 20 20 20 Final Carried 18 | 4 12 18 17 Class Distribution -------------------- 55% | Mutant 44% | Scavenger-Mutant Dominant Class ---------------- Mutant | -10/Materials Mutant | -9/Materials Scavenger-Mutant | -8/Materials Resources | -11 -10 -9 -8 ----------- Run | Yrd Mat Mat Mat Matter Collected 1299 | 232 123 264 680 Remotely . | . . . . Salvage Created 3126 | . 450 1006 1670 Parts 193 | . 25 62 106 Haulers Intercepted 3 | . . . 3 Recyclers Shooed 3 | . 1 . 2 Parts Field Recycled . | . . . . Retrieved Matter . | . . . . Parts Self-Destructed . | . . . . Prevented . | . . . . Parts Restored . | . . . . Kills | -11 -10 -9 -8 ------- Run | Yrd Mat Mat Mat Combat Hostiles Destroyed 62 | . 10 23 29 Guns 33 | . 10 13 10 Cannons 13 | . . 9 4 AOE 16 | . . 1 15 Classes Destroyed 11 | . 4 3 4 Worker 3 | . . . 3 Builder 4 | . . 3 1 Tunneler 1 | . . . 1 Hauler 3 | . . . 3 Recycler 7 | . 2 3 2 Watcher 10 | . 3 3 4 Swarmer 20 | . 6 7 7 Grunt 24 | . 4 6 14 Duelist 1 | . . 1 . Sentry 13 | . . 9 4 Specialist 4 | . . . 4 Best Kill Streak 11 | . 4 8 11 Combat Bots Only 10 | . 3 6 10 Max Kills in Single Turn 5 | . 1 2 5 Gunslinging . | . . . . Exploded 3 | . . 1 3 Melee . | . . . . Uniques/NPCs Destroyed . | . . . . Combat | -11 -10 -9 -8 -------- Run | Yrd Mat Mat Mat Hostile Shots Fired 415 | . 53 154 208 Missed 108 | . 14 33 61 Hits 307 | . 39 121 147 Melee 3 | . . . 3 Projectile 304 | . 39 121 144 Critical Strikes 17 | . 1 4 12 Actively Blocked 2 | . . . 2 Part Disruptions 1 | . . 1 . Damage Taken 4514 | . 398 1645 2471 Core 987 | . 106 326 555 Absorbed by Shields . | . . . . Redirected to Shielding 94 | . . 30 64 Core Remaining (%) 58 | 100 57 18 . Volleys Fired 199 | . 40 75 84 Largest 2 | . 2 2 2 Hottest 130 | . 115 118 130 Shots Fired 366 | . 80 135 151 Gun 220 | . 80 62 78 Cannon 115 | . . 66 49 Launcher 31 | . . 7 24 Special . | . . . . Kinetic 122 | . 19 47 56 Thermal 213 | . 61 81 71 Explosive 10 | . . 7 3 Electromagnetic 21 | . . . 21 Robot Hit Streak 15 | . 8 15 10 Robot Miss Streak 5 | . 3 5 5 Penetration Max 1 | . . . 1 Secondary Targets 1 | . . 1 . Max Gunslinging Chain 1 | . . 1 . Shots Hit Robots 238 | . 50 94 94 Core Hits 146 | . 23 44 79 Critical Kills . | . . . . Critical Parts Destroyed . | . . . . Critical Strikes 13 | . 2 5 6 Burn 11 | . 2 4 5 Blast 2 | . . 1 1 Melee Attacks . | . . . . Impact . | . . . . Slashing . | . . . . Piercing . | . . . . Sneak Attacks . | . . . . Combat Hostiles . | . . . . Follow-up Attacks . | . . . . Damage Inflicted 5431 | . 712 1640 3079 Guns 2376 | . 712 691 973 Cannons 1438 | . . 822 616 Explosions 1604 | . . 127 1477 Melee . | . . . . Ramming 13 | . . . 13 Kinetic 1599 | . 170 616 813 Thermal 2435 | . 542 897 996 Explosive 388 | . . 127 261 Electromagnetic 996 | . . . 996 Impact . | . . . . Slashing . | . . . . Piercing . | . . . . Highest Corruption 3 | . 3 . . Average Corruption 2 | . 2 . . Corruption Purged . | . . . . Corruption Blocked . | . . . . Effects 10 | . 10 . . Message Errors 3 | . 3 . . Matter Fused 1 | . 1 . . Heat Flow Errors 1 | . 1 . . Energy Discharges 1 | . 1 . . Data Loss (minor) 1 | . 1 . . Data Loss (major) 1 | . 1 . . Misfires 2 | . 2 . . Overload Shots . | . . . . Overflow Damage 95 | . . 59 36 Projectiles 1 | . . 1 . Explosions 94 | . . 58 36 Melee . | . . . . Knockbacks 6 | . . 2 4 Impact . | . . . . Kinetic 6 | . . 2 4 Secondary . | . . . . Self-Inflicted Damage 198 | . . 112 86 Shots 10 | . . 4 6 Rammed 2 | . . . 2 Targets Rammed 2 | . . . 2 Kicked . | . . . . Crushed . | . . . . Highest Temperature 406 | . 396 406 128 Average Temperature 70 | . 115 62 37 Received Heat Transfer 1608 | . 168 540 900 Effects 4 | . 3 1 . Shutdowns 1 | . 1 . . Energy Bleed 2 | . 1 1 . Damage (minor) 1 | . 1 . . Siege Activations . | . . . . Martial Activations . | . . . . Shielding Activations . | . . . . Robots Disrupted . | . . . . Combat Hostiles . | . . . . Robots Corrupted . | . . . . Combat Hostiles . | . . . . Parts Fried . | . . . . Impact Corruptions . | . . . . Robots Melted . | . . . . Combat Hostiles . | . . . . Parts Melted 14 | . 3 8 3 Heat Transferred 6579 | . 1665 2627 2287 Parts Sabotaged . | . . . . Parts Stolen . | . . . . Parts Stripped . | . . . . Power Chain Reactions 7 | . . . 7 Alert | -11 -10 -9 -8 ------- Run | Yrd Mat Mat Mat Maximum Alert Level 2 | . . 1 2 Low Security (%) 83 | 100 100 91 67 Level 1 15 | . . 8 30 Level 2 . | . . . 2 Level 3 . | . . . . Level 4 . | . . . . Level 5 . | . . . . High Security . | . . . . Max Security . | . . . . Peak Influence 404 | . 77 225 404 Initial 47 | . . . 47 Average 108 | . 24 124 134 Influence Increases 1952 | . 271 771 910 Destroy 0b10 Robot/C 1240 | . 200 460 580 Destroy 0b10 Robot/NC 140 | . 25 45 70 Destroy Leader 326 | . 46 146 134 Disable Machine 90 | . . 45 45 Destroy Structure 111 | . . 60 51 Lose Combat Pursuer 45 | . . 15 30 Influence Decreases 1589 | . 271 658 660 Entered New Map 66 | . . . 66 Time Decay 1121 | . 241 488 392 Lost Part 402 | . 30 170 202 Squads Dispatched 9 | . 1 2 6 Investigation 1 | . . . 1 Extermination . | . . . . Reinforcement 8 | . 1 2 5 Assault . | . . . . Garrison . | . . . . Intercept . | . . . . Searches Triggered . | . . . . Construction Impeded 1 | . . . 1 Haulers Reinforced . | . . . . Active Scanning Responses . | . . . . Cargo Convoy Interrupts . | . . . . Stealth | -11 -10 -9 -8 --------- Run | Yrd Mat Mat Mat Distress Signals 6 | . 2 1 3 Communications Jammed . | . . . . Distress Signals . | . . . . Times Spotted 95 | . 17 31 47 Peak Tracking Total 6 | . 4 6 6 Tactical Retreats 3 | . . 1 2 Traps | -11 -10 -9 -8 ------- Run | Yrd Mat Mat Mat Traps Triggered 4 | . 2 1 1 Indirectly 1 | . . . 1 Trap Hack Attempts . | . . . . Triggered . | . . . . Disarmed . | . . . . Reprogrammed . | . . . . Reused . | . . . . Traps Extracted . | . . . . Installed . | . . . . Triggered . | . . . . Machines | -11 -10 -9 -8 ---------- Run | Yrd Mat Mat Mat Machines Disabled 6 | . . 3 3 Max in Single Turn 2 | . . 1 2 Machines Repaired . | . . . . Machines Dismantled . | . . . . Machines Sabotaged . | . . . . Overloaded Fab Kills . | . . . . Hacking | -11 -10 -9 -8 --------- Run | Yrd Mat Mat Mat Machines Accessed . | . . . . Terminals . | . . . . Fabricators . | . . . . Repair Stations . | . . . . Recycling Units . | . . . . Scanalyzers . | . . . . Garrison Access . | . . . . Total Hacks . | . . . . Successful . | . . . . Failed . | . . . . Catastrophic . | . . . . Database Lockouts . | . . . . Manual . | . . . . Terminals . | . . . . Fabricators . | . . . . Repair Stations . | . . . . Recycling Units . | . . . . Scanalyzers . | . . . . Garrison Access . | . . . . Terminal Hacks . | . . . . Fabricator Hacks . | . . . . Repair Station Hacks . | . . . . Recycling Unit Hacks . | . . . . Scanalyzer . | . . . . Garrison Access Hacks . | . . . . Unauthorized Hacks . | . . . . Terminals . | . . . . Fabricators . | . . . . Repair Stations . | . . . . Recycling Units . | . . . . Scanalyzers . | . . . . Garrison Access . | . . . . Data Cores Recovered . | . . . . Used . | . . . . Hacking Detections . | . . . . Full Trace Events . | . . . . Feedback Events . | . . . . Feedback Blocked . | . . . . Robot Schematics Acquired . | . . . . Robots Built . | . . . . Authchips . | . . . . Time . | . . . . Total Robot Build Rating . | . . . . Part Schematics Acquired . | . . . . Parts Built . | . . . . Authchips . | . . . . Time . | . . . . Total Part Build Rating . | . . . . Part Studies Acquired . | . . . . Parts Repaired . | . . . . Time . | . . . . Parts Recycled . | . . . . Recycled Matter . | . . . . Retrieved Matter . | . . . . Retrieved Components . | . . . . Parts Scanalyzed . | . . . . Part Schematics Acquired . | . . . . Parts Damaged . | . . . . Bothacking | -11 -10 -9 -8 ------------ Run | Yrd Mat Mat Mat Used RIF Installer . | . . . . Robots Hacked . | . . . . Non-combat . | . . . . Combat . | . . . . Robot Hacks Applied . | . . . . Relay Couplers Released . | . . . . Fabnet Peak Effective % . | . . . . Robots Rewired . | . . . . Allies Hacked . | . . . . Hacks Repelled . | . . . . Allies | -11 -10 -9 -8 -------- Run | Yrd Mat Mat Mat Total Allies . | . . . . Largest Group . | . . . . Highest-Rated Group . | . . . . Highest-Rated Ally . | . . . . Total Orders . | . . . . Ally Attacks . | . . . . Total Damage . | . . . . Kills . | . . . . Allies Corrupted . | . . . . Allies Melted . | . . . . Intel | -11 -10 -9 -8 ------- Run | Yrd Mat Mat Mat Active Infowar (turns) 3757 | . 612 1556 1589 T.N.C. 3757 | . 612 1556 1589 Robot Analysis Total . | . . . . Derelict Logs Recovered . | . . . . Drone Launches . | . . . . Drone Recoveries . | . . . . Exploration | -11 -10 -9 -8 ------------- Run | Yrd Mat Mat Mat Turns Passed 3944 | 55 744 1556 1589 Spaces Moved 1817 | 41 439 756 581 Core 77 | 3 . 53 21 Treads 261 | . . . 261 Legs . | . . . . Wheels 1479 | 38 439 703 299 Hover . | . . . . Flight . | . . . . Fastest Speed 50 | 50 100 105 105 Average Speed 173 | 96 131 170 213 Slowest Speed 1050 | 100 145 900 1050 Overloaded Moves . | . . . . Propulsion Burnouts . | . . . . Robots Hopped . | . . . . Potential Cave-ins . | . . . . Cave-ins Triggered . | . . . . Exploration Rate (%) 54 | 3 89 71 56 Regions Visited 3 Branch Regions . Pre-discovered Areas . | . . . . Known Exits Taken . | . . . . Unknown Exits Taken 3 | 1 1 1 . Scrap Searched . | . . . . Spaces Dug . | . . . . Terrain Destroyed 120 | . . 58 62 Melee . | . . . . Projectile 4 | . . . 4 AOE 116 | . . 58 58 Terrain Rammed . | . . . . Walls Destroyed . | . . . . Machines Disabled . | . . . . Actions | -11 -10 -9 -8 --------- Run | Yrd Mat Mat Mat Total 2260 | 56 526 895 783 Wait 93 | . 31 25 37 Move 1814 | 40 438 755 581 Hop . | . . . . Pick Up 75 | 10 12 22 31 Fast Attach 1 | . . . 1 Attach 54 | 6 4 17 27 Detach 1 | . . 1 . Swap 8 | . 1 . 7 Drop 13 | . . . 13 Fire 199 | . 40 75 84 Melee . | . . . . Ram 1 | . . . 1 Kick . | . . . . Crush 1 | . . . 1 Escape Stasis . | . . . . Rewire . | . . . . Trap . | . . . . Miscellaneous . | . . . . Route ------- -11/Scrapyard -10/Materials (discovered 4 exits: *Mat x2 / [*Min x2]) -9/Materials (discovered 3 exits: *Mat x2 / [*Min]) -8/Materials (discovered 2 exits: [*Sto x2]) History --------- Turn | Location | Event 13 | -11/Scrapyard | Discovered new exit (range 15) 56 | -11/Scrapyard | Entered Materials 56 | -10/Materials | Discovered new exit (range 7) 276 | -10/Materials | Discovered new exit (range 12) 305 | -10/Materials | Build established: Mutant 430 | -10/Materials | Discovered new exit (range 5) 741 | -10/Materials | Discovered new exit (range 8) 800 | -10/Materials | Entered another Materials area 800 | -9/Materials | Evolved 2 slots: Utility x2 1177 | -9/Materials | Discovered new exit (range 8) 1354 | -9/Materials | Lost 3 parts (1n1u1w) 1483 | -9/Materials | Discovered new exit (range 16) 1579 | -9/Materials | Lost 3 parts (1p1n1w) 1668 | -9/Materials | Core integrity fell below 50% 1913 | -9/Materials | Lost 3 parts (1p1n1w) 2079 | -9/Materials | Discovered new exit (range 12) 2143 | -9/Materials | Core integrity fell below 20% 2356 | -9/Materials | Entered another Materials area 2356 | -8/Materials | Evolved 2 slots: Power x1, Utility x1 2432 | -8/Materials | Discovered new exit (range 13) 2656 | -8/Materials | Build established: Scavenger-Mutant 3131 | -8/Materials | Lost 4 parts (1p1u2w) 3439 | -8/Materials | Lost 5 parts (1p3n1u) 3464 | -8/Materials | Destroyed 10 combat bots 3524 | -8/Materials | Lost 3 parts (1p1n1w) 3702 | -8/Materials | Build established: Mutant 3716 | -8/Materials | Core integrity fell below 50% 3743 | -8/Materials | Core integrity fell below 20% 3746 | -8/Materials | Lost 3 parts (1p1u1w) 3864 | -8/Materials | Discovered new exit (range 11) 3899 | -8/Materials | Lost 3 parts (1p2w) 3945 | -8/Materials | Destroyed by X-62 Marksman with Gauss Rifle Last Messages --------------- ALERT: Hostile activity reported, dispatching reinforcements to area. Imp. Deuterium Engine destroyed. Gauss Rifle destroyed. Knocked back. U-05 Engineer builds a Wall. Penetrated by Slug. Imp. Medium Laser destroyed. U-05 Engineer builds a Wall. Acquired Spread Laser. ALERT: Suspicious intruders detected, dispatching Specialist reinforcements to area. Identified Imp. EM Shotgun. Faulty integration triggers meltdown. Hcp. Storage Unit damaged (-155). Com. Wheel damaged (-5). Y-45 Defender destroyed. Acquired 46 matter. Slammed into R-06 Scavenger. Wheel destroyed. Map ----- +----------------------------------------------------+ | ???????????????????????????????????????????????? | | ???????????????????????????????????????????????? | | ????####+###???????????????????????????????????? | | ####"# #???????????????????????????????????? | | #???????????????????????????????????? | | #???????????????????????????????????? | | "" ![ ! #??????????????????????? #????????? | | "" ## #??????????????????????? +????????? | | "" #?###########?????????????????? #????????? | | #?# [ #?????????????????? #????????? | | ### #?????????????????? #????????? | | # #?????????????????? #????????? | | + """ #???###########???? #????????? | | # """"" #???# #???# #????????? | | ##+##+# """"" #???# "T" #???# #????????? | | # """"" #???# #???# #????????? | | """"" # """ #???# #??## #????????? | | """"" ###########???#####+#####??## ##???????? | | """"" #??????????????# ####### #???????? | | #??????????????# #???????? | | ! #######????????# " T +???????? | | ####### #????????# x % #???????? | | #???# ] #????????#[ x####### #???????? | | / ##### """ ########### ##?????## %##???????? | | # # """ # # #???????# #????????? | | + # """ # # @#???????# #????????? | | " # # + ! = # #???????# #????????? | | " # + # """ """ # #???????# #????????? | | " # # # """ """ + #???????# #????????? | | # #"" # """ """ # #???????# #????????? | | ### #"Y # # #??????? ????????? | | T # #"" # # #??????? ????????? | | # # ########### #??????? H #???????? | | " "% ######?????????# #??????? #???????? | | " / #??????????????# #??????? #???????? | | " #?????###??????#k ##############???????? | | %%########T######## ## #??????????? | | ##" a u # """"" #??????????? | | ?## % # ""T"" #??????????? | | ?## !!] ! + #??????????? | | ?#T ] !] # #??????????? | | ?## % % !] # """ #??????????? | | ###### % ### """ #??????????? | | ?????# ### """ #??????????? | | ?????# %=% %% # # ! #??????????? | | ##########%# #########??????????? | | #???#### # # #??????????????????? | | #?????# # # ##??????????????????? | | #?????## # ## #??????????????????? | | ########+##?????# #+# #??????????????????? | +----------------------------------------------------+ Best States ------------- Heat Dissipation 42 Energy Generation 27 Energy Capacity 480 Matter Stores 300 Matter Capacity 300 Sight Range 16 Terrain Scan Density 10 Armor Coverage 150 Core Shielding 20 Evasion (%) 40 Targeting Accuracy 16 Recoil Reduction 2 Item Schematics ----------------- None Robot Schematics ------------------ None Fabricated ------------ Nothing Repaired ---------- Nothing Studied --------- None Alien Tech Used ----------------- None Achievements -------------- Let's See Who's Tougher Please Form A Line Challenges ------------ None Game ------ Seed RefineryOpticalBiocell Manual? 0 Play Time 00:32:47 Cumulative 12.2 hours Start 2025.12.21 @ 14:04:27 End 2025.12.21 @ 15:16:35 Sessions 2 Manual Loads 0 Difficulty Rogue Special Mode None Game No. 33 Rogue 32 Adventurer 0 Explorer 1 Win Type - Total 0 Types 0/0/0/0/0/0/0/0/0/0 Lore% 8 Gallery% 14 Achievement% 12 Wizard Run 0 Options --------- Layout 1 ASCII 0 Keyboard 0 Movement Mouse Keybinds 0 Fullscreen 2 Font 24/Smallcaps Map View 50x35 Zoom Use 0% Tactical HUD 0 Map Filters NONE Filters NONE Steam 1 RUN: b8cd1406-19a4-4c50-8cec-53802fe20f0f